fUSD/lending_fUSD_20250219
["ID","MTS","AMOUNT","RATE_DAILY","PERIOD"]
[353616158,1739958658606,-1595.95,0.00014025,2]
[353616159,1739958658617,-2360.69,0.00014025,2]
[353616160,1739958658629,-500.0,0.00014025,2]
[353616161,1739958658643,-500.0,0.00014025,2]
[353616162,1739958658654,-500.0,0.00014025,2]
[353616163,1739958658666,-500.0,0.00014025,2]
[353616164,1739958658676,-930.8,0.00014025,2]
[353616165,1739958658686,-500.0,0.00014025,2]
[353616166,1739958658696,-288.71553425,0.00014025,2]
[353616167,1739958658706,-4058.1,0.00014025,2]
[353616168,1739958658719,-661.97,0.00014025,2]
[353616169,1739958658730,-2252.01,0.00014025,2]
[353616170,1739958658741,-500.0,0.00014025,2]
[353616171,1739958658752,-500.0,0.00014025,2]
[353616172,1739958658763,-500.0,0.00014025,2]
[353616173,1739958658773,-500.0,0.00014025,2]
[353616174,1739958658784,-1230.73,0.00014025,2]
[353616175,1739958658795,-500.0,0.00014025,2]
[353616176,1739958658806,-591.75,0.00014025,2]
[353616177,1739958658818,-500.0,0.00014025,2]
[353616178,1739958658829,-500.0,0.00014025,2]
[353616179,1739958658839,-500.0,0.00014025,2]
[353616180,1739958658851,-1971.74,0.00014025,2]
[353616181,1739958658861,-500.0,0.00014025,2]
[353616182,1739958658872,-500.0,0.00014025,2]
[353616183,1739958658883,-1580.38,0.00014025,2]
[353616184,1739958658895,-500.0,0.00014025,2]
[353616185,1739958658905,-777.0,0.00014025,2]
[353616186,1739958658916,-500.0,0.00014025,2]
[353616187,1739958658927,-500.0,0.00014025,2]
[353616188,1739958658938,-2647.7,0.00014025,2]
[353616189,1739958658949,-500.0,0.00014025,2]
[353616190,1739958658960,-1017.49,0.00014025,2]
[353616191,1739958658971,-1298.81,0.00014025,2]
[353616192,1739958658982,-500.0,0.00014025,2]
[353616193,1739958658993,-1429.82,0.00014025,2]
[353616194,1739958659004,-500.0,0.00014025,2]
[353616195,1739958659015,-500.0,0.00014025,2]
[353616196,1739958659027,-500.0,0.00014025,2]
[353616197,1739958659040,-1350.11,0.00014025,2]
[353616198,1739958659051,-500.0,0.00014025,2]
[353616199,1739958659062,-500.0,0.00014025,2]
[353616200,1739958659073,-395.67673785,0.00014025,2]
[353616201,1739958659084,-1657.98,0.00014025,2]
[353616202,1739958659098,-500.0,0.00014025,2]
[353616203,1739958659114,-500.0,0.00014025,2]
[353616204,1739958659125,-500.0,0.00014025,2]
[353616205,1739958659137,-2268.32,0.00014025,2]
[353616206,1739958659148,-500.0,0.00014025,2]
[353616207,1739958659159,-500.0,0.00014025,2]
[353616208,1739958659170,-500.0,0.00014025,2]
[353616209,1739958659181,-500.0,0.00014025,2]
[353616210,1739958659192,-500.0,0.00014025,2]
[353616211,1739958659203,-500.0,0.00014025,2]
[353616212,1739958659215,-500.0,0.00014025,2]
[353616213,1739958659227,-2631.41,0.00014025,2]
[353616214,1739958659238,-1668.81,0.00014025,2]
[353616215,1739958659248,-500.0,0.00014025,2]
[353616216,1739958659259,-1315.26,0.00014025,2]
[353616217,1739958659270,-1731.57,0.00014025,2]
[353616218,1739958659280,-500.0,0.00014025,2]
[353616219,1739958659291,-714.44,0.00014025,2]
[353616220,1739958659302,-514.82740287,0.00014025,2]
[353616221,1739958659315,-1643.03,0.00014025,2]
[353616222,1739958659325,-511.83985952,0.00014025,2]
[353616223,1739958659335,-1725.14,0.00014025,2]
[353616224,1739958659347,-764.1,0.00014025,2]
[353616225,1739958659358,-1919.55,0.00014025,2]
[353616226,1739958659369,-500.0,0.00014025,2]
[353616227,1739958659383,-627.8,0.00014025,2]
[353616228,1739958659394,-1254.03,0.00014025,2]
[353616229,1739958659405,-1433.78,0.00014025,2]
[353616230,1739958659415,-500.0,0.00014025,2]
[353616231,1739958659426,-654.61,0.00014025,2]
[353616232,1739958659441,-500.0,0.00014025,2]
[353616233,1739958659452,-741.88,0.00014025,2]
[353616234,1739958659463,-1167.89,0.00014025,2]
[353616235,1739958659473,-810.7,0.00014025,2]
[353616236,1739958659484,-2263.14,0.00014025,2]
[353616237,1739958659494,-500.0,0.00014025,2]
[353616238,1739958659505,-1747.62,0.00014025,2]
[353616239,1739958659516,-500.0,0.00014025,2]
[353616240,1739958659527,-500.0,0.00014025,2]
[353616241,1739958659539,-500.0,0.00014025,2]
[353616242,1739958659550,-500.0,0.00014025,2]
[353616243,1739958659562,-599.82,0.00014025,2]
[353616244,1739958659572,-562.97,0.00014025,2]
[353616245,1739958659583,-1126.39,0.00014025,2]
[353616246,1739958659594,-1051.71,0.00014025,2]
[353616247,1739958659604,-507.56,0.00014025,2]
[353616248,1739958659615,-1415.79,0.00014025,2]
[353616249,1739958659626,-1904.34,0.00014025,2]
[353616250,1739958659636,-2445.12,0.00014025,2]
[353616251,1739958659647,-520.58,0.00014025,2]
[353616252,1739958659658,-505.46231814,0.00014025,2]
[353616253,1739958659668,-500.0,0.00014025,2]
[353616254,1739958659678,-500.0,0.00014025,2]
[353616255,1739958659689,-2013.34,0.00014025,2]
[353616256,1739958659699,-500.0,0.00014025,2]
[353616257,1739958659710,-500.0,0.00014025,2]
[353616258,1739958659720,-500.0,0.00014025,2]
[353616259,1739958659731,-500.0,0.00014025,2]
[353616260,1739958659741,-500.0,0.00014025,2]
[353616261,1739958659752,-1155.82,0.00014025,2]
[353616262,1739958659762,-500.0,0.00014026,2]
[353616263,1739958659773,-500.0,0.00014026,2]
[353616264,1739958659783,-500.0,0.00014026,2]
[353616265,1739958659793,-500.0,0.00014026,2]
[353616266,1739958659803,-500.0,0.00014026,2]
[353616267,1739958659815,-500.0,0.00014026,2]
[353616268,1739958659826,-500.0,0.00014026,2]
[353616269,1739958659836,-500.0,0.00014026,2]
[353616270,1739958659847,-500.0,0.00014026,2]
[353616271,1739958659857,-654.29,0.00014026,2]
[353616272,1739958659868,-500.0,0.00014026,2]
[353616273,1739958659878,-500.0,0.00014026,2]
[353616274,1739958659888,-285.92931219,0.00014026,2]
[353616275,1739958659899,-500.0,0.00014026,2]
[353616276,1739958659908,-500.0,0.00014026,2]
[353616277,1739958659918,-1204.96,0.00014026,2]
[353616278,1739958659929,-709.03,0.00014026,2]
[353616279,1739958659939,-500.0,0.00014026,2]
[353616280,1739958659950,-500.0,0.00014026,2]
[353616281,1739958659961,-531.9,0.00014026,2]
[353616282,1739958659980,-500.0,0.00014026,2]
[353616283,1739958659992,-500.0,0.00014026,2]
[353616284,1739958660008,-500.0,0.00014026,2]
[353616285,1739958660018,-508.01,0.00014026,2]
[353616286,1739958660029,-500.0,0.00014026,2]
[353616287,1739958660039,-500.0,0.00014026,2]
[353616288,1739958660050,-1121.0,0.00014026,2]
[353616289,1739958660062,-521.19873146,0.00014026,2]
[353616290,1739958660073,-500.0,0.00014026,2]
[353616291,1739958660083,-500.0,0.00014026,2]
[353616292,1739958660094,-500.0,0.00014026,2]
[353616293,1739958660104,-500.0,0.00014026,2]
[353616294,1739958660114,-544.84,0.00014026,2]
[353616295,1739958660125,-500.0,0.00014026,2]
[353616296,1739958660135,-500.0,0.00014026,2]
[353616297,1739958660145,-500.0,0.00014026,2]
[353616298,1739958660155,-500.0,0.00014026,2]
[353616299,1739958660166,-500.0,0.00014026,2]
[353616300,1739958660179,-500.0,0.00014026,2]
[353616301,1739958660190,-500.0,0.00014026,2]
[353616302,1739958660200,-500.0,0.00014026,2]
[353616303,1739958660211,-541.25,0.00014026,2]
[353616304,1739958660222,-500.0,0.00014026,2]
[353616305,1739958660232,-500.0,0.00014026,2]
[353616306,1739958660243,-500.0,0.00014026,2]
[353616307,1739958660254,-500.0,0.00014026,2]
[353616308,1739958660265,-500.0,0.00014026,2]
[353616309,1739958660275,-500.0,0.00014026,2]
[353616310,1739958660285,-500.0,0.00014026,2]
[353616311,1739958660295,-500.0,0.00014026,2]
[353616312,1739958660306,-500.0,0.00014026,2]
[353616313,1739958660319,-604.95,0.00014026,2]
[353616314,1739958660329,-500.0,0.00014026,2]
[353616315,1739958660340,-500.0,0.00014026,2]
[353616316,1739958660351,-500.0,0.00014026,2]
[353616317,1739958660362,-620.86,0.00014026,2]
[353616318,1739958660375,-500.0,0.00014026,2]
[353616319,1739958660387,-521.33,0.00014026,2]
[353616320,1739958660397,-500.0,0.00014026,2]
[353616321,1739958660407,-500.0,0.00014026,2]
[353616322,1739958660419,-542.44,0.00014026,2]
[353616323,1739958660429,-500.0,0.00014026,2]
[353616324,1739958660439,-500.0,0.00014026,2]
[353616325,1739958660450,-500.0,0.00014026,2]
[353616326,1739958660461,-500.0,0.00014026,2]
[353616327,1739958660471,-500.0,0.00014026,2]
[353616328,1739958660481,-566.47,0.00014026,2]
[353616329,1739958660492,-500.0,0.00014026,2]
[353616330,1739958660503,-500.0,0.00014026,2]
[353616331,1739958660513,-500.0,0.00014026,2]
[353616332,1739958660524,-500.0,0.00014026,2]
[353616333,1739958660534,-500.0,0.00014026,2]
[353616334,1739958660545,-500.0,0.00014026,2]
[353616335,1739958660555,-500.0,0.00014026,2]
[353616336,1739958660566,-500.0,0.00014026,2]
[353616337,1739958660576,-500.0,0.00014026,2]
[353616338,1739958660587,-500.0,0.00014026,2]
[353616339,1739958660597,-500.0,0.00014026,2]
[353616340,1739958660607,-563.67,0.00014026,2]
[353616341,1739958660618,-500.0,0.00014026,2]
[353616342,1739958660628,-500.0,0.00014026,2]
[353616343,1739958660639,-500.0,0.00014026,2]
[353616344,1739958660650,-587.72,0.00014026,2]
[353616345,1739958660660,-591.76,0.00014026,2]
[353616346,1739958660670,-500.0,0.00014026,2]
[353616347,1739958660680,-500.0,0.00014026,2]
[353616348,1739958660690,-884.82,0.00014026,2]
[353616349,1739958660700,-500.0,0.00014026,2]
[353616350,1739958660710,-500.0,0.00014026,2]
[353616351,1739958660720,-500.0,0.00014026,2]
[353616352,1739958660730,-194.62355072,0.00014026,2]
[353616353,1739958660740,-500.0,0.00014026,2]
[353616354,1739958660750,-500.0,0.00014026,2]
[353616355,1739958660760,-500.0,0.00014026,2]
[353616356,1739958660770,-500.0,0.00014026,2]
[353616357,1739958660780,-500.0,0.00014026,2]
[353616358,1739958660791,-500.0,0.00014026,2]
[353616359,1739958660805,-500.0,0.00014026,2]
[353616360,1739958660816,-500.0,0.00014026,2]
[353616361,1739958660826,-500.0,0.00014026,2]
[353616362,1739958660837,-500.0,0.00014026,2]
[353616363,1739958660848,-657.98,0.00014026,2]
[353616364,1739958660858,-500.0,0.00014026,2]
[353616365,1739958660868,-933.0,0.00014026,2]
[353616366,1739958660879,-500.0,0.00014026,2]
[353616367,1739958660890,-500.0,0.00014026,2]
[353616368,1739958660902,-500.0,0.00014026,2]
[353616369,1739958660913,-507.72776106,0.00014026,2]
[353616370,1739958660924,-500.0,0.00014026,2]
[353616371,1739958660935,-500.0,0.00014026,2]
[353616372,1739958660945,-844.31,0.00014026,2]
[353616373,1739958660956,-1320.47,0.00014026,2]
[353616374,1739958660966,-500.0,0.00014026,2]
[353616375,1739958660977,-500.0,0.00014026,2]
[353616376,1739958660987,-860.08,0.00014026,2]
[353616377,1739958660997,-500.0,0.00014026,2]
[353616378,1739958661009,-1183.05,0.00014026,2]
[353616379,1739958661019,-555.74,0.00014026,2]
[353616380,1739958661030,-572.35,0.00014026,2]
[353616381,1739958661042,-371.33859709,0.00014026,2]
[353616382,1739958661053,-500.0,0.00014026,2]
[353616383,1739958661063,-919.71,0.00014026,2]
[353616384,1739958661644,-500.0,0.00014026,2]
[353616385,1739958661670,-500.0,0.00014026,2]
[353616386,1739958661692,-500.0,0.00014026,2]
[353616387,1739958661706,-500.0,0.00014026,2]
[353616388,1739958661716,-500.0,0.00014026,2]
[353616389,1739958661726,-500.0,0.00014026,2]
[353616390,1739958661737,-1181.72,0.00014026,2]
[353616391,1739958661748,-500.0,0.00014026,2]
[353616392,1739958661757,-500.0,0.00014026,2]
[353616393,1739958661767,-613.99351514,0.00014026,2]
[353616394,1739958661779,-530.5,0.00014026,2]
[353616395,1739958661790,-500.0,0.00014026,2]
[353616396,1739958661799,-500.0,0.00014026,2]
[353616397,1739958661809,-500.0,0.00014026,2]
[353616398,1739958661820,-500.0,0.00014026,2]
[353616399,1739958661829,-500.0,0.00014026,2]
[353616400,1739958661839,-978.42,0.00014026,2]
[353616401,1739958661849,-500.0,0.00014026,2]
[353616402,1739958661859,-500.0,0.00014026,2]
[353616403,1739958661868,-501.47,0.00014026,2]
[353616404,1739958661878,-500.0,0.00014026,2]
[353616405,1739958661888,-500.0,0.00014026,2]
[353616406,1739958661898,-500.0,0.00014026,2]
[353616407,1739958661907,-512.88,0.00014026,2]
[353616408,1739958661917,-500.0,0.00014026,2]
[353616409,1739958661926,-500.0,0.00014026,2]
[353616410,1739958661935,-500.0,0.00014026,2]
[353616411,1739958661945,-803.3,0.00014026,2]
[353616412,1739958661955,-500.0,0.00014026,2]
[353616413,1739958661965,-500.0,0.00014026,2]
[353616414,1739958661974,-500.0,0.00014026,2]
[353616415,1739958661984,-501.74,0.00014026,2]
[353616416,1739958661993,-500.0,0.00014026,2]
[353616417,1739958662003,-500.0,0.00014026,2]
[353616418,1739958662012,-758.53,0.00014026,2]
[353616419,1739958662022,-500.0,0.00014026,2]
[353616420,1739958662032,-500.0,0.00014026,2]
[353616421,1739958662043,-571.54,0.00014026,2]
[353616422,1739958662054,-500.0,0.00014026,2]
[353616423,1739958662065,-500.0,0.00014026,2]
[353616424,1739958662074,-1007.34,0.00014026,2]
[353616425,1739958662083,-500.0,0.00014026,7]
[353616426,1739958662093,-500.0,0.00014026,2]
[353616427,1739958662102,-500.0,0.00014026,2]
[353616428,1739958662111,-500.0,0.00014026,2]
[353616429,1739958662121,-500.0,0.00014026,2]
[353616430,1739958662133,-1035.75,0.00014026,2]
[353616431,1739958662142,-500.0,0.00014026,2]
[353616432,1739958662152,-500.0,0.00014026,2]
[353616433,1739958662162,-500.0,0.00014026,2]
[353616434,1739958662172,-781.46,0.00014026,2]
[353616435,1739958662182,-500.0,0.00014026,2]
[353616436,1739958662191,-777.52,0.00014026,2]
[353616437,1739958662201,-500.0,0.00014026,2]
[353616438,1739958662211,-765.33,0.00014026,2]
[353616439,1739958662220,-500.0,0.00014026,2]
[353616440,1739958662230,-500.0,0.00014026,2]
[353616441,1739958662239,-500.0,0.00014026,2]
[353616442,1739958662248,-500.0,0.00014026,2]
[353616443,1739958662258,-584.72,0.00014026,2]
[353616444,1739958662267,-500.0,0.00014026,2]
[353616445,1739958662277,-500.0,0.00014026,2]
[353616446,1739958662288,-500.0,0.00014026,2]
[353616447,1739958662297,-500.0,0.00014026,2]
[353616448,1739958662307,-500.0,0.00014026,2]
[353616449,1739958662317,-598.61,0.00014026,2]
[353616450,1739958662327,-500.0,0.00014026,2]
[353616451,1739958662336,-500.0,0.00014026,2]
[353616452,1739958662347,-500.0,0.00014026,2]
[353616453,1739958662356,-500.0,0.00014026,2]
[353616454,1739958662366,-500.0,0.00014026,2]
[353616455,1739958662377,-500.0,0.00014026,2]
[353616456,1739958662387,-500.0,0.00014026,2]
[353616457,1739958662396,-604.93,0.00014026,2]
[353616458,1739958662406,-819.81,0.00014026,2]
[353616459,1739958662416,-500.0,0.00014026,2]
[353616460,1739958662426,-579.43,0.00014026,2]
[353616461,1739958662436,-1371.65,0.00014026,2]
[353616462,1739958662445,-500.0,0.00014026,2]
[353616463,1739958662456,-662.41,0.00014026,2]
[353616464,1739958662466,-500.0,0.00014026,2]
[353616465,1739958662475,-500.0,0.00014026,2]
[353616466,1739958662486,-500.0,0.00014026,2]
[353616467,1739958662497,-500.0,0.00014026,2]
[353616468,1739958662506,-545.98,0.00014026,2]
[353616469,1739958662516,-500.0,0.00014026,2]
[353616470,1739958662525,-689.74,0.00014026,2]
[353616471,1739958662534,-500.0,0.00014026,2]
[353616472,1739958662543,-509.48346501,0.00014026,2]
[353616473,1739958662553,-500.0,0.00014026,2]
[353616474,1739958662563,-500.0,0.00014026,2]
[353616475,1739958662572,-550.26,0.00014026,2]
[353616476,1739958662582,-500.0,0.00014026,2]
[353616477,1739958662592,-500.0,0.00014026,2]
[353616478,1739958662601,-500.0,0.00014026,2]
[353616479,1739958662610,-500.0,0.00014026,2]
[353616480,1739958662620,-500.0,0.00014026,2]
[353616481,1739958662629,-819.11,0.00014026,2]
[353616482,1739958662639,-500.0,0.00014026,2]
[353616483,1739958662648,-500.0,0.00014026,2]
[353616484,1739958662658,-500.0,0.00014026,2]
[353616485,1739958662667,-650.6,0.00014026,2]
[353616486,1739958662677,-500.0,0.00014026,2]
[353616487,1739958662686,-706.48,0.00014026,2]
[353616488,1739958662695,-487.77428461,0.00014026,2]
[353616489,1739958662704,-500.0,0.00014026,2]
[353616490,1739958662714,-500.0,0.00014026,2]
[353616491,1739958662723,-500.0,0.00014026,2]
[353616492,1739958662734,-500.0,0.00014026,2]
[353616493,1739958662744,-1348.26557,0.00014026,2]
[353616494,1739958662753,-500.0,0.00014026,2]
[353616495,1739958662763,-1348.26557,0.00014026,2]
[353616496,1739958662772,-500.0,0.00014026,2]
[353616497,1739958662782,-500.0,0.00014026,2]
[353616498,1739958662792,-500.0,0.00014026,2]
[353616499,1739958662801,-841.44,0.00014026,2]
[353616500,1739958662810,-500.0,0.00014026,2]
[353616501,1739958662820,-500.0,0.00014026,2]
[353616502,1739958662829,-500.0,0.00014026,2]
[353616503,1739958662839,-510.60029744,0.00014026,2]
[353616504,1739958662849,-500.0,0.00014026,2]
[353616505,1739958662858,-2287.15,0.00014026,2]
[353616506,1739958662868,-810.27,0.00014026,2]
[353616507,1739958662877,-500.0,0.00014026,2]
[353616508,1739958662888,-500.0,0.00014026,2]
[353616509,1739958662899,-500.0,0.00014026,2]
[353616510,1739958662908,-3780.16,0.00014026,2]
[353616511,1739958662919,-500.0,0.00014026,2]
[353616512,1739958662930,-594.76,0.00014026,2]
[353616513,1739958662942,-500.0,0.00014026,2]
[353616514,1739958662952,-508.27232512,0.00014026,2]
[353616515,1739958662962,-500.0,0.00014026,2]
[353616516,1739958662971,-2689.59,0.00014026,2]
[353616517,1739958662981,-500.0,0.00014026,2]
[353616518,1739958662990,-500.0,0.00014026,2]
[353616519,1739958662999,-500.0,0.00014026,2]
[353616520,1739958663009,-500.0,0.00014026,2]
[353616521,1739958663018,-500.0,0.00014026,2]
[353616522,1739958663028,-675.26,0.00014026,2]
[353616523,1739958663038,-500.0,0.00014026,2]
[353616524,1739958663048,-500.0,0.00014026,2]
[353616525,1739958663058,-500.0,0.00014026,2]
[353616526,1739958663069,-1054.3,0.00014026,2]
[353616527,1739958663079,-525.73,0.00014026,2]
[353616528,1739958663090,-500.0,0.00014026,2]
[353616529,1739958663100,-1002.09,0.00014026,2]
[353616530,1739958663109,-1768.75,0.00014026,2]
[353616531,1739958663119,-500.0,0.00014026,2]
[353616532,1739958663129,-500.0,0.00014026,2]
[353616533,1739958663138,-500.0,0.00014026,2]
[353616534,1739958663148,-500.0,0.00014026,2]
[353616535,1739958663158,-500.0,0.00014026,2]
[353616536,1739958663167,-500.0,0.00014026,2]
[353616537,1739958663178,-566.11,0.00014026,2]
[353616538,1739958663188,-500.0,0.00014026,2]
[353616539,1739958663198,-500.0,0.00014026,2]
[353616540,1739958663209,-500.0,0.00014026,2]
[353616541,1739958663219,-500.0,0.00014026,2]
[353616542,1739958663228,-500.0,0.00014026,2]
[353616543,1739958663239,-500.0,0.00014026,2]
[353616544,1739958663249,-1310.35,0.00014026,2]
[353616545,1739958663258,-671.31,0.00014026,2]
[353616546,1739958663268,-587.64,0.00014026,2]
[353616547,1739958663278,-500.0,0.00014026,2]
[353616548,1739958663288,-500.0,0.00014026,2]
[353616549,1739958663298,-500.0,0.00014026,2]
[353616550,1739958663308,-500.0,0.00014026,2]
[353616551,1739958663317,-500.0,0.00014026,2]
[353616552,1739958663327,-500.0,0.00014026,2]
[353616553,1739958663337,-802.0,0.00014026,2]
[353616554,1739958663348,-500.0,0.00014026,2]
[353616555,1739958663358,-500.0,0.00014026,2]
[353616556,1739958663367,-1473.07,0.00014026,2]
[353616557,1739958663380,-500.0,0.00014026,2]
[353616558,1739958663390,-500.0,0.00014026,2]
[353616559,1739958663401,-630.16,0.00014026,2]
[353616560,1739958663411,-1193.41,0.00014026,2]
[353616561,1739958663423,-500.0,0.00014026,2]
[353616562,1739958663433,-500.0,0.00014026,2]
[353616563,1739958663443,-500.0,0.00014026,2]
[353616564,1739958663456,-1595.03,0.00014026,2]
[353616565,1739958663466,-1362.68,0.00014026,2]
[353616566,1739958663476,-500.0,0.00014026,2]
[353616567,1739958663486,-500.0,0.00014026,2]
[353616568,1739958663495,-500.0,0.00014026,2]
[353616569,1739958663505,-151.0,0.00014026,2]
[353616570,1739958663515,-500.0,0.00014026,2]
[353616571,1739958663525,-500.0,0.00014026,2]
[353616572,1739958663535,-1140.33,0.00014026,2]
[353616573,1739958663546,-1145.3,0.00014026,2]
[353616574,1739958663556,-533.66,0.00014026,2]
[353616575,1739958663567,-1298.9,0.00014026,2]
[353616576,1739958663577,-1690.53,0.00014026,2]
[353616577,1739958663587,-500.0,0.00014026,2]
[353616578,1739958663597,-500.0,0.00014026,2]
[353616579,1739958663607,-500.0,0.00014026,2]
[353616580,1739958663616,-500.0,0.00014026,2]
[353616581,1739958663627,-500.0,0.00014026,2]
[353616582,1739958663637,-500.0,0.00014026,2]
[353616583,1739958663647,-837.24,0.00014026,2]
[353616584,1739958663657,-500.0,0.00014026,2]
[353616585,1739958663667,-692.97,0.00014026,2]
[353616586,1739958663677,-527.91,0.00014026,2]
[353616587,1739958663687,-1648.75,0.00014026,2]
[353616588,1739958663697,-623.3,0.00014026,2]
[353616589,1739958663710,-500.0,0.00014026,2]
[353616590,1739958663721,-1384.35,0.00014026,2]
[353616591,1739958663734,-500.0,0.00014026,2]
[353616592,1739958663744,-500.0,0.00014026,2]
[353616593,1739958663754,-500.0,0.00014026,2]
[353616594,1739958663764,-500.0,0.00014026,2]
[353616595,1739958663774,-500.0,0.00014026,2]
[353616596,1739958663785,-500.0,0.00014026,2]
[353616597,1739958663794,-500.0,0.00014026,2]
[353616598,1739958663804,-151.0,0.00014026,2]
[353616599,1739958663815,-595.63,0.00014026,2]
[353616600,1739958663826,-500.0,0.00014026,2]
[353616601,1739958663837,-500.0,0.00014026,2]
[353616602,1739958663847,-500.0,0.00014026,2]
[353616603,1739958663856,-949.24,0.00014026,2]
[353616604,1739958663867,-500.0,0.00014026,2]
[353616605,1739958663876,-500.0,0.00014026,2]
[353616606,1739958663887,-1155.94,0.00014026,2]
[353616607,1739958663897,-500.0,0.00014026,2]
[353616608,1739958663907,-500.0,0.00014026,2]
[353616609,1739958663917,-500.0,0.00014026,2]
[353616610,1739958663928,-284.472409,0.00014026,2]
[353616611,1739958663938,-1515.36,0.00014026,2]
[353616612,1739958663947,-667.96,0.00014026,2]
[353616613,1739958663957,-500.0,0.00014026,2]
[353616614,1739958663967,-500.0,0.00014026,2]
[353616615,1739958664032,-833.43,0.00014026,2]
[353616616,1739958664042,-500.0,0.00014026,2]
[353616617,1739958664052,-846.54,0.00014026,2]
[353616618,1739958664061,-500.0,0.00014026,2]
[353616619,1739958664071,-1520.24,0.00014026,2]
[353616620,1739958664082,-500.0,0.00014026,2]
[353616621,1739958664092,-500.0,0.00014026,2]
[353616622,1739958664102,-886.83,0.00014026,2]
[353616623,1739958664111,-806.85,0.00014026,2]
[353616624,1739958664121,-500.0,0.00014026,2]
[353616625,1739958664130,-500.0,0.00014026,2]
[353616626,1739958664140,-500.0,0.00014026,2]
[353616627,1739958664150,-1543.83,0.00014026,2]
[353616628,1739958664161,-500.0,0.00014026,2]
[353616629,1739958664171,-500.0,0.00014026,2]
[353616630,1739958664181,-1384.11,0.00014026,2]
[353616631,1739958664191,-500.0,0.00014026,2]
[353616632,1739958664200,-786.83,0.00014026,2]
[353616633,1739958664211,-500.0,0.00014026,2]
[353616634,1739958664222,-500.0,0.00014026,2]
[353616635,1739958664232,-1949.93,0.00014026,2]
[353616636,1739958664242,-997.23,0.00014026,2]
[353616637,1739958664252,-500.0,0.00014026,2]
[353616638,1739958664262,-500.0,0.00014026,2]
[353616639,1739958664273,-500.0,0.00014026,2]
[353616640,1739958664283,-1755.95,0.00014026,2]
[353616641,1739958664293,-500.0,0.00014026,2]
[353616642,1739958664302,-1102.94,0.00014026,2]
[353616643,1739958664312,-500.0,0.00014027,2]
[353616644,1739958664323,-500.0,0.00014027,2]
[353616645,1739958664334,-500.0,0.00014027,2]
[353616646,1739958664345,-500.0,0.00014027,2]
[353616647,1739958664355,-500.0,0.00014027,2]
[353616648,1739958664365,-500.0,0.00014027,2]
[353616649,1739958664377,-500.0,0.00014027,2]
[353616650,1739958664388,-784.43,0.00014027,2]
[353616651,1739958664398,-896.43,0.00014027,2]
[353616652,1739958664407,-500.0,0.00014027,2]
[353616653,1739958664418,-653.58,0.00014027,2]
[353616654,1739958664430,-500.0,0.00014027,2]
[353616655,1739958664439,-500.0,0.00014027,2]
[353616656,1739958664449,-500.0,0.00014027,2]
[353616657,1739958664459,-500.0,0.00014027,2]